Cogmind - Beta 13 @@@ ROGUE MODE // 2024.04.25 @ 11:20:04 Player: Beagleofevil Result: Self-destructed Performance ------------- Evolutions (1) 500 Regions Visited (2) 400 Robots Destroyed (23) 115 Value Destroyed (561) 561 Prototype IDs (1) 20 Alien Tech Used (0) 0 Bonus (0) 0 TOTAL SCORE: 1596 Bonus ------- None Cogmind --------- Core Integrity 263/400 Matter 260/300 Energy 88/100 System Corruption 0% Temperature Cool (0) Movement Treading (160) Location -9/Materials Parts ------- > --- POWER (1) -------- (None) > --- PROPULSION (2) --- Light Treads Improved Treads > --- UTILITY (4) ------ Large Storage Unit Signal Interpreter Transport Network Coupler Weapon Shielding > --- WEAPON (2) ------- Improved Assault Rifle Hammer > --- INVENTORY (15) --- Light Treads Light Treads Wheel Compact Wheel Small Storage Unit Seismic Detector Propulsion Shielding Medium Laser Particle Cannon Light Assault Rifle Mining Laser Peak State ------------ > --- POWER ------------ Light Ion Engine > --- PROPULSION ------- Light Treads Improved Treads > --- UTILITY ---------- Large Storage Unit Signal Interpreter Transport Network Coupler Weapon Shielding > --- WEAPON ----------- Particle Cannon Improved Assault Rifle > --- INVENTORY -------- Light Treads Light Treads Wheel Compact Wheel Small Storage Unit Seismic Detector Propulsion Shielding Medium Laser Light Assault Rifle Mining Laser Hammer [Rating: 14] Favorites ----------- Power Ion Engine Engine Ion Engine Propulsion Light Treads Treads Light Treads Utility Large Storage Unit Device Seismic Detector Storage Large Storage Unit Processor Signal Interpreter Protection Light Armor Plating Weapon Hammer Energy Gun EM Pulse Gun Energy Cannon Particle Cannon Ballistic Gun Light Assault Rifle Special Weapon Mining Laser Impact Weapon Hammer Build | -11 -10 -9 ------- Run | Yrd Mat Mat Slots Evolved 2 | . . 2 Power . | . . . Propulsion . | . . . Utility 2 | . . 2 Weapon . | . . . Parts Attached 29 | 8 6 15 Power 3 | 2 . 1 Engine 3 | 2 . 1 Core . | . . . Reactor . | . . . Propulsion 6 | 2 . 4 Treads 6 | 2 . 4 Leg . | . . . Wheel . | . . . Hover . | . . . Flight . | . . . Utility 10 | 2 2 6 Device 2 | 1 . 1 Storage 2 | 1 1 . Processor 3 | . 1 2 Hackware . | . . . Protection 3 | . . 3 Artifact . | . . . Weapon 10 | 2 4 4 Energy Gun 2 | 1 . 1 Energy Cannon 1 | . . 1 Ballistic Gun 3 | 1 1 1 Ballistic Cannon . | . . . Launcher . | . . . Special Weapon 2 | . 2 . Impact Weapon 2 | . 1 1 Slashing Weapon . | . . . Piercing Weapon . | . . . Special Melee Weapon . | . . . Unidentified Prototypes 1 | . . 1 Parts Lost 3 | . . 3 Power 1 | . . 1 Propulsion . | . . . Utility 1 | . . 1 Weapon 1 | . . 1 Highest Loss Streak 2 | . . 2 To Critical Strikes 1 | . . 1 Average Slot Usage (%) 99 | . 100 99 Engine 12 | . 14 10 Treads 24 | . 28 22 Device 7 | . 13 2 Storage 12 | . 14 11 Processor 11 | . . 22 Protection 4 | . . 8 Energy Gun 7 | . 14 1 Energy Cannon 4 | . . 8 Ballistic Gun 1 | . 2 . Special Weapon 3 | . 6 . Impact Weapon 7 | . 4 11 Naked Turns . | . . . Heaviest Build 34 | 14 30 34 Greatest Support 43 | 40 40 43 Greatest Overweight (x) 1 | . . 1 Average Overweight (x) . | . . . Largest Inventory Capacity 15 | 8 15 15 Average Capacity 14 | 7 14 15 Most Carried 13 | 6 12 13 Average Carried 10 | 3 10 11 Final Capacity 15 | 8 15 15 Final Carried 12 | 5 12 11 Class Distribution -------------------- 100% | Mutant Dominant Class ---------------- Mutant | -10/Materials Mutant | -9/Materials Resources | -11 -10 -9 ----------- Run | Yrd Mat Mat Matter Collected 457 | 286 46 125 Remotely . | . . . Salvage Created 813 | 122 169 522 Parts 48 | 6 11 31 Haulers Intercepted 2 | . 1 1 Recyclers Shooed 1 | 1 . . Parts Field Recycled . | . . . Retrieved Matter . | . . . Parts Self-Destructed . | . . . Prevented . | . . . Kills | -11 -10 -9 ------- Run | Yrd Mat Mat Combat Hostiles Destroyed 15 | . 2 13 Melee 6 | . 2 4 Cannons 7 | . . 7 Classes Destroyed 8 | 2 3 3 Tunneler 1 | 1 . . Hauler 2 | . 1 1 Recycler 1 | 1 . . Operator 1 | . . 1 Watcher 3 | . 1 2 Swarmer 4 | . . 4 Grunt 8 | . 2 6 Sentry 3 | . . 3 Best Kill Streak 5 | 2 2 5 Combat Bots Only 4 | . 2 4 Max Kills in Single Turn 1 | 1 1 1 Gunslinging . | . . . Exploded . | . . . Melee 1 | . 1 1 Uniques/NPCs Destroyed . | . . . Combat | -11 -10 -9 -------- Run | Yrd Mat Mat Hostile Shots Fired 110 | . 13 97 Missed 24 | . 3 21 Damage Taken 905 | . 126 779 Core 158 | . 21 137 Absorbed by Shields . | . . . Redirected to Shielding 19 | . . 19 Core Remaining (%) 95 | 100 91 . Volleys Fired 67 | 6 18 43 Largest 2 | 2 2 1 Hottest 100 | 60 100 68 Shots Fired 79 | 12 24 43 Gun 30 | 12 15 3 Cannon 40 | . . 40 Launcher . | . . . Special 9 | . 9 . Kinetic 12 | 6 6 . Thermal 52 | . 9 43 Explosive . | . . . Electromagnetic 15 | 6 9 . Robot Hit Streak 10 | 4 3 10 Robot Miss Streak 3 | 1 1 3 Penetration Max . | . . . Secondary Targets . | . . . Shots Hit Robots 64 | 8 13 43 Core Hits 25 | 4 6 15 Critical Kills 2 | . . 2 Critical Parts Destroyed 2 | . 1 1 Critical Strikes 6 | . 1 5 Burn 1 | . . 1 Smash 5 | . 1 4 Melee Attacks 34 | . 13 21 Impact 34 | . 13 21 Slashing . | . . . Piercing . | . . . Sneak Attacks . | . . . Combat Hostiles . | . . . Follow-up Attacks . | . . . Damage Inflicted 1327 | 87 222 1018 Guns 221 | 87 121 13 Cannons 555 | . . 555 Explosions 101 | . . 101 Melee 450 | . 101 349 Ramming . | . . . Kinetic 59 | 38 21 . Thermal 568 | . . 568 Explosive 101 | . . 101 Electromagnetic 149 | 49 100 . Impact 450 | . 101 349 Slashing . | . . . Piercing . | . . . Highest Corruption . | . . . Average Corruption . | . . . Corruption Purged . | . . . Corruption Blocked . | . . . Overload Shots . | . . . Overflow Damage 83 | . 25 58 Projectiles 1 | . . 1 Explosions 11 | . . 11 Melee 71 | . 25 46 Knockbacks 1 | . . 1 Impact 1 | . . 1 Kinetic . | . . . Secondary . | . . . Self-Inflicted Damage 51 | . . 51 Shots 1 | . . 1 Rammed . | . . . Targets Rammed . | . . . Kicked . | . . . Crushed . | . . . Highest Temperature 208 | 40 60 208 Average Temperature 42 | 26 19 55 Received Heat Transfer 243 | . 69 174 Siege Activations . | . . . Robots Corrupted . | . . . Combat Hostiles . | . . . Parts Fried 5 | . 3 2 Impact Corruptions 3 | . 1 2 Robots Melted . | . . . Combat Hostiles . | . . . Parts Melted 2 | . . 2 Heat Transferred 1110 | . . 1110 Parts Sabotaged . | . . . Parts Stolen . | . . . Parts Stripped . | . . . Power Chain Reactions . | . . . Alert | -11 -10 -9 ------- Run | Yrd Mat Mat Peak Influence 306 | 10 60 306 Initial 21 | . 6 21 Average 78 | 4 35 138 Maximum Alert Level 1 | . . 1 Low Security (%) 87 | 100 100 71 Level 1 12 | . . 28 Level 2 . | . . . Level 3 . | . . . Level 4 . | . . . Level 5 . | . . . High Security . | . . . Max Security . | . . . Squads Dispatched 2 | . . 2 Investigation . | . . . Extermination . | . . . Reinforcement 2 | . . 2 Assault . | . . . Garrison . | . . . Intercept . | . . . Searches Triggered . | . . . Construction Impeded . | . . . Haulers Reinforced . | . . . Active Scanning Responses . | . . . Cargo Convoy Interrupts . | . . . Stealth | -11 -10 -9 --------- Run | Yrd Mat Mat Distress Signals 3 | . . 3 Communications Jammed . | . . . Distress Signals . | . . . Times Spotted 25 | . 3 22 Peak Tracking Total 5 | . 2 5 Tactical Retreats 1 | . . 1 Traps | -11 -10 -9 ------- Run | Yrd Mat Mat Traps Triggered 1 | . . 1 Indirectly . | . . . Trap Hack Attempts . | . . . Triggered . | . . . Disarmed . | . . . Reprogrammed . | . . . Reused . | . . . Traps Extracted . | . . . Installed . | . . . Triggered . | . . . Machines | -11 -10 -9 ---------- Run | Yrd Mat Mat Machines Disabled 2 | . . 2 Max in Single Turn 1 | . . 1 Machines Repaired . | . . . Machines Dismantled . | . . . Machines Sabotaged . | . . . Overloaded Fab Kills . | . . . Hacking | -11 -10 -9 --------- Run | Yrd Mat Mat Machines Accessed 5 | . 4 1 Terminals 3 | . 2 1 Fabricators . | . . . Repair Stations . | . . . Recycling Units 2 | . 2 . Scanalyzers . | . . . Garrison Access . | . . . Total Hacks 15 | . 13 2 Successful 9 | . 8 1 Failed 6 | . 5 1 Catastrophic . | . . . Database Lockouts . | . . . Manual 6 | . 4 2 Terminals 7 | . 5 2 Fabricators . | . . . Repair Stations . | . . . Recycling Units 8 | . 8 . Scanalyzers . | . . . Garrison Access . | . . . Terminal Hacks 2 | . 2 . Robot Analysis 1 | . 1 . Registered Components 1 | . 1 . Fabricator Hacks . | . . . Repair Station Hacks . | . . . Recycling Unit Hacks 3 | . 3 . Report Inventory 2 | . 2 . Retrieve Components 1 | . 1 . Scanalyzer . | . . . Garrison Access Hacks . | . . . Unauthorized Hacks 4 | . 3 1 Terminals 2 | . 1 1 Botnet 2 | . 1 1 Fabricators . | . . . Repair Stations . | . . . Recycling Units 2 | . 2 . Monitor 1 | . 1 . Recyclers 1 | . 1 . Scanalyzers . | . . . Garrison Access . | . . . Data Cores Recovered . | . . . Used . | . . . Hacking Detections 5 | . 4 1 Full Trace Events 1 | . 1 . Feedback Events . | . . . Feedback Blocked . | . . . Robot Schematics Acquired . | . . . Robots Built . | . . . Authchips . | . . . Time . | . . . Total Robot Build Rating . | . . . Part Schematics Acquired . | . . . Parts Built . | . . . Authchips . | . . . Time . | . . . Total Part Build Rating . | . . . Parts Repaired . | . . . Time . | . . . Parts Recycled . | . . . Recycled Matter . | . . . Retrieved Matter . | . . . Retrieved Components . | . . . Parts Scanalyzed . | . . . Part Schematics Acquired . | . . . Parts Damaged . | . . . Bothacking | -11 -10 -9 ------------ Run | Yrd Mat Mat Used RIF Installer . | . . . Robots Hacked . | . . . Non-combat . | . . . Combat . | . . . Robot Hacks Applied . | . . . Relay Couplers Released . | . . . Fabnet Peak Effective % . | . . . Robots Rewired . | . . . Allies Hacked . | . . . Hacks Repelled . | . . . Allies | -11 -10 -9 -------- Run | Yrd Mat Mat Total Allies . | . . . Largest Group . | . . . Highest-Rated Group . | . . . Highest-Rated Ally . | . . . Total Orders . | . . . Ally Attacks . | . . . Total Damage . | . . . Kills . | . . . Allies Corrupted . | . . . Allies Melted . | . . . Intel | -11 -10 -9 ------- Run | Yrd Mat Mat Robot Analysis Total 1 | . 1 . Derelict Logs Recovered . | . . . Drone Launches . | . . . Drone Recoveries . | . . . Exploration | -11 -10 -9 ------------- Run | Yrd Mat Mat Turns Passed 1210 | 138 519 553 Spaces Moved 534 | 68 233 233 Core 3 | 3 . . Treads 531 | 65 233 233 Legs . | . . . Wheels . | . . . Hover . | . . . Flight . | . . . Fastest Speed 50 | 50 160 160 Average Speed 159 | 155 160 160 Slowest Speed 240 | 160 160 240 Overloaded Moves . | . . . Propulsion Burnouts . | . . . Robots Hopped . | . . . Cave-ins Triggered . | . . . Exploration Rate (%) 21 | 5 44 15 Regions Visited 2 Branch Regions . Pre-discovered Areas . | . . . Known Exits Taken 1 | . 1 . Unknown Exits Taken 1 | 1 . . Scrap Searched . | . . . Spaces Dug 15 | . 12 3 Terrain Destroyed 61 | . 13 48 Melee 8 | . 5 3 Projectile 8 | . 8 . AOE 45 | . . 45 Terrain Rammed . | . . . Walls Destroyed . | . . . Machines Disabled . | . . . Actions | -11 -10 -9 --------- Run | Yrd Mat Mat Total 728 | 87 313 328 Wait 49 | . 38 11 Move 532 | 67 232 233 Hop . | . . . Pick Up 15 | 6 6 3 Fast Attach 8 | 5 . 3 Attach 7 | 2 . 5 Detach 1 | . . 1 Swap 14 | 1 6 7 Drop 1 | . . 1 Fire 67 | 6 18 43 Melee 34 | . 13 21 Ram . | . . . Kick . | . . . Crush . | . . . Escape Stasis . | . . . Rewire . | . . . Trap . | . . . Miscellaneous . | . . . Route ------- -11/Scrapyard -10/Materials (discovered 2 exits: *Mat x2) -9/Materials History --------- Turn | Location | Event 30 | -11/Scrapyard | Discovered new exit (range 16) 139 | -11/Scrapyard | Entered Materials 297 | -10/Materials | Discovered new exit (range 11) 300 | -10/Materials | Build established: Mutant 577 | -10/Materials | Discovered new exit (range 5) 647 | -10/Materials | Identified exit to Materials 658 | -10/Materials | Entered another Materials area 658 | -9/Materials | Evolved 2 slots: Utility x2 1211 | -9/Materials | Self-destructed Last Messages --------------- 01179_ K-01 Serf destroyed. 01181_ K-01 Serf collects debris. 01188_ S-10 Pest destroyed. 01190_ A-02 Transporter destroyed. 01190_ K-01 Serf collects debris. 01194_ Acquired Prototype Ballistic Gun. 01194_ Identified Imp. Assault Rifle. 01194_ K-01 Serf collects debris. 01204_ Triggered Blade Trap. 01204_ Massive razor-sharp blades shoot up from within the floor. 01204_ Imp. Treads severed. 01204_ Lgt. Ion Engine severed. 01204_ Lgt. Treads severed. 01204_ W-16 Scout sends out distress signal. 01205_ Acquired Imp. Treads. 01209_ U-05 Engineer lays Concrete. 01209_ Critical hit (Burn: +37). 01209_ Acquired Lgt. Treads. Map ----- +----------------------------------------------------+ | | | | | | | | | ?????????????????????????????????????????????????? | | ######???????????????????????????????????????????? | | #???????????????????????????????????????????? | | #???????????????????????????????????????????? | | #???????????????????????????????????????????? | | #???????????????????????????????????????????? | | #???????????????????????????????????????????? | | ## ###???????????????????????????????????????????? | | ?# T#????????????????????????????????????????????? | | ?# #####????????????"????????????????????????????? | | ## ## ###??????????"""""????????????????????????? | | # #######???????"""""????????????????????????? | | ##+# *## #??????? """?????????????????????????? | | ## % # #??????? ???????#+##???????????????? | | / #! #########+######## ???????????????? | | ## %+ ???????????????? | | # ##?#????????????? | | # = k """"" """#????????????? | | # *%= % """"""" R"#????????????? | | # # [%=%* """ """ """?????????????? | | ###################[= ! * ##??????????????? | | ??????????????????#[%%[ @ T#???????a??????? | | ??????????????????#=%= ##??????????????? | | ??????????????????#=[! %u #???????????????? | | ??????????????? g = [[| #???????????????? | | ???????????? g [[| #???????????????? | | ???????????? w k k u ^[=| [#???????????????? | | ????????????######## #???????????????? | | ???????????????????# #???????????????? | | ???????????????????# #???????????????? | | ???????????????????# #???????????????? | | ???????????????????# ######### +???????????????? | | ???????????????????# ????????? #???????????????? | | ???????????????????# ????????? #???????????????? | | ???????????????????# ?????????? w#???????????????? | | ???????????????????? ????????????????????????????? | | ???????????????????? ????????????????????????????? | | ?????????????????????????????????????????????????? | | ?????????????????????????????????????????????????? | | ?????????????????????????????????????????????????? | | ?????????????????????????????????????????????????? | | ?????????????????????????????????????????????????? | | ?????????????????????????????????????????????????? | | ?????????????????????????????????????????????????? | | ?????????????????????????????????????????????????? | | ?????????????????????????????????????????????????? | +----------------------------------------------------+ Best States ------------- Heat Dissipation 28 Energy Generation 10 Energy Capacity 250 Matter Stores 300 Matter Capacity 300 Sight Range 16 Terrain Scan Density 10 Armor Coverage 150 Propulsion Shielding 33 Weapon Shielding 33 Evasion (%) 40 Recoil Reduction 2 Item Schematics ----------------- None Robot Schematics ------------------ None Fabricated ------------ Nothing Alien Tech Used ----------------- None Achievements -------------- None Challenges ------------ None Game ------ Seed TrapDisruptionRecalibrator Manual? 0 Play Time 00:18:05 Cumulative 228.1 hours Start 2024.04.25 @ 11:02:07 End 2024.04.25 @ 11:20:04 Sessions 1 Manual Loads 0 Difficulty Rogue Special Mode None Game No. 79 Rogue 3 Adventurer 76 Explorer 0 Win Type - Total 4 Types 3/0/0/0/0/0/0/1/0 Lore% 45 Gallery% 44 Achievement% 45 Wizard Run 0 Options --------- Layout 1 ASCII 0 Keyboard 0 Movement Arrows Keybinds 0 Fullscreen 1 Font 24/Smallcaps Map View 50x35 Zoom Use 0% Tactical HUD 1 Map Filters NONE Filters NONE Steam 1 RUN: 17e9eaa1-a10c-4199-8898-523fd55c3090